fUSD/lending_fUSD_20250328
["ID","MTS","AMOUNT","RATE_DAILY","PERIOD"]
[356783225,1743177053150,-500.0,0.00043835,30]
[356783226,1743177053254,-500.0,0.00043835,30]
[356783227,1743177053263,-560.16709712,0.00043835,30]
[356783228,1743177053273,-500.0,0.00043835,30]
[356783229,1743177053282,-500.0,0.00043835,30]
[356783230,1743177053292,-268.31033187,0.00043835,30]
[356783231,1743177053301,-500.0,0.00043835,30]
[356783232,1743177053311,-500.0,0.00043835,30]
[356783233,1743177053320,-500.0,0.00043835,30]
[356783234,1743177053330,-500.0,0.00043835,30]
[356783235,1743177053339,-500.0,0.00043835,30]
[356783236,1743177053349,-500.0,0.00043835,30]
[356783237,1743177053358,-500.0,0.00043835,30]
[356783238,1743177053367,-508.3595192,0.00043835,30]
[356783239,1743177053377,-500.0,0.00043835,30]
[356783240,1743177053387,-331.0,0.00043835,7]
[356783241,1743177053397,-529.57739862,0.00043835,30]
[356783242,1743177053406,-500.0,0.00043835,30]
[356783243,1743177053415,-500.0,0.00043835,30]
[356783244,1743177053424,-500.0,0.00043835,30]
[356783245,1743177053434,-226.7103998,0.00043835,30]
[356783246,1743177053443,-500.0,0.00043835,30]
[356783247,1743177053452,-500.0,0.00043835,30]
[356783248,1743177053462,-2000.0,0.00043835,30]
[356783249,1743177053472,-500.0,0.00043835,30]
[356783250,1743177053481,-500.0,0.00043835,30]
[356783251,1743177053490,-500.0,0.00043835,30]
[356783252,1743177053500,-500.0,0.00043835,30]
[356783253,1743177053509,-1221.53696666,0.00043835,10]
[356783254,1743177053519,-500.0,0.00043835,30]
[356783255,1743177053528,-500.0,0.00043835,30]
[356783256,1743177053538,-500.0,0.00043835,30]
[356783257,1743177053548,-500.0,0.00043835,30]
[356783258,1743177053557,-500.0,0.00043835,30]
[356783259,1743177053566,-500.0,0.00043835,30]
[356783260,1743177053575,-500.0,0.00043835,30]
[356783261,1743177053585,-500.0,0.00043835,30]
[356783262,1743177053595,-500.0,0.00043835,30]
[356783263,1743177053604,-500.0,0.00043835,30]
[356783264,1743177053614,-587.59793337,0.00043835,30]
[356783265,1743177053624,-500.0,0.00043835,30]
[356783266,1743177053635,-564.44378532,0.00043835,30]
[356783267,1743177053644,-500.0,0.00043835,30]
[356783268,1743177053654,-577.08326822,0.00043835,30]
[356783269,1743177053663,-607.18417426,0.00043835,30]
[356783270,1743177053673,-500.0,0.00043835,30]
[356783271,1743177053683,-500.0,0.00043835,30]
[356783272,1743177053692,-500.0,0.00043835,30]
[356783273,1743177053701,-500.0,0.00043835,30]
[356783274,1743177053710,-500.0,0.00043835,30]
[356783275,1743177053720,-500.0,0.00043835,30]
[356783276,1743177053729,-500.0,0.00043835,30]
[356783277,1743177053738,-500.0,0.00043835,30]
[356783278,1743177053749,-573.49356576,0.00043835,30]
[356783279,1743177053758,-500.0,0.00043835,30]
[356783280,1743177053770,-583.86534443,0.00043835,30]
[356783281,1743177053780,-1000.0,0.00043835,120]
[356783282,1743177053790,-500.0,0.00043835,30]
[356783283,1743177053799,-500.0,0.00043835,30]
[356783284,1743177053810,-500.0,0.00043835,30]
[356783285,1743177053819,-513.04581353,0.00043835,30]
[356783286,1743177053829,-520.1342131,0.00043835,30]
[356783287,1743177053838,-500.0,0.00043835,30]
[356783288,1743177053848,-596.16501763,0.00043835,30]
[356783289,1743177053858,-542.03471768,0.00043835,30]
[356783290,1743177053869,-557.30968055,0.00043835,30]
[356783291,1743177053879,-500.0,0.00043835,30]
[356783292,1743177053888,-500.0,0.00043835,30]
[356783293,1743177053898,-500.0,0.00043835,30]
[356783294,1743177053907,-545.161765,0.00043835,30]
[356783295,1743177053916,-500.0,0.00043835,30]
[356783296,1743177053925,-500.0,0.00043835,30]
[356783297,1743177053935,-1729.13,0.00043835,30]
[356783298,1743177053944,-533.19785603,0.00043835,30]
[356783299,1743177053954,-500.0,0.00043835,30]
[356783300,1743177053963,-592.09232802,0.00043835,30]
[356783301,1743177053972,-542.68625521,0.00043835,30]
[356783302,1743177053982,-537.74329891,0.00043835,30]
[356783303,1743177053992,-387.31171242,0.00043835,30]
[356783304,1743177054001,-500.0,0.00043835,30]
[356783305,1743177054010,-500.0,0.00043835,30]
[356783306,1743177054020,-500.0,0.00043835,30]
[356783307,1743177054029,-556.34575114,0.00043835,30]
[356783308,1743177054038,-500.0,0.00043835,30]
[356783309,1743177054048,-531.65644446,0.00043835,30]
[356783310,1743177054057,-536.26487673,0.00043835,30]
[356783311,1743177054067,-9170.6,0.00043835,30]
[356783312,1743177054076,-500.0,0.00043835,30]
[356783313,1743177054086,-570.6853833,0.00043835,30]
[356783314,1743177054096,-608.33,0.00043835,30]
[356783315,1743177054105,-500.0,0.00043835,30]
[356783316,1743177054115,-557.5122735,0.00043835,30]
[356783317,1743177054124,-500.0,0.00043835,30]
[356783318,1743177054135,-522.01056262,0.00043835,30]
[356783319,1743177054145,-500.0,0.00043835,30]
[356783320,1743177054155,-566.89056268,0.00043835,30]
[356783321,1743177054165,-539.56,0.00043835,30]
[356783322,1743177054175,-526.99902232,0.00043835,30]
[356783323,1743177054185,-500.0,0.00043835,30]
[356783324,1743177054194,-500.0,0.00043835,30]
[356783325,1743177054204,-500.0,0.00043835,30]
[356783326,1743177054214,-500.0,0.00043835,30]
[356783327,1743177054224,-500.0,0.00043835,30]
[356783328,1743177054233,-500.0,0.00043835,30]
[356783329,1743177054242,-547.79349655,0.00043835,30]
[356783330,1743177054252,-500.0,0.00043835,30]
[356783331,1743177054261,-500.0,0.00043835,30]
[356783332,1743177054270,-500.0,0.00043835,30]
[356783333,1743177054280,-528.46084704,0.00043835,30]
[356783334,1743177054289,-500.0,0.00043835,30]
[356783335,1743177054298,-500.0,0.00043835,30]
[356783336,1743177054308,-500.0,0.00043835,30]
[356783337,1743177054317,-500.0,0.00043835,30]
[356783338,1743177054326,-635.20696505,0.00043835,30]
[356783339,1743177054336,-150.0,0.00043835,30]
[356783340,1743177054346,-500.0,0.00043835,30]
[356783341,1743177054355,-500.0,0.00043835,30]
[356783342,1743177054364,-500.0,0.00043835,30]
[356783343,1743177054374,-500.0,0.00043835,30]
[356783344,1743177054384,-500.0,0.00043835,30]
[356783345,1743177054394,-500.0,0.00043835,30]
[356783346,1743177054404,-512.93525427,0.00043835,30]
[356783347,1743177054414,-500.0,0.00043835,120]
[356783348,1743177054423,-500.0,0.00043835,30]
[356783349,1743177054433,-538.27697273,0.00043835,30]
[356783350,1743177054442,-500.0,0.00043835,30]
[356783351,1743177054453,-500.0,0.00043835,30]
[356783352,1743177054462,-500.0,0.00043835,30]
[356783353,1743177054472,-500.0,0.00043835,30]
[356783354,1743177054481,-500.0,0.00043835,30]
[356783355,1743177054491,-500.0,0.00043835,30]
[356783356,1743177054500,-500.0,0.00043835,30]
[356783357,1743177054510,-5081.771313,0.00043835,30]
[356783358,1743177054520,-500.0,0.00043835,30]
[356783359,1743177054529,-529.99750222,0.00043835,30]
[356783360,1743177054539,-500.0,0.00043835,30]
[356783361,1743177054549,-500.0,0.00043835,30]
[356783362,1743177054558,-380.25523136,0.00043835,30]
[356783363,1743177054568,-500.0,0.00043835,30]
[356783364,1743177054578,-563.83527559,0.00043835,30]
[356783365,1743177054588,-592.94002462,0.00043835,30]
[356783366,1743177054598,-500.0,0.00043835,30]
[356783367,1743177054697,-500.0,0.00043835,30]
[356783368,1743177054708,-532.80245563,0.00043835,30]
[356783369,1743177054718,-548.06715093,0.00043835,30]
[356783370,1743177054728,-555.89545547,0.00043835,30]
[356783371,1743177054737,-500.0,0.00043835,30]
[356783372,1743177054747,-507.23512499,0.00043835,30]
[356783373,1743177054757,-504.9288183,0.00043835,30]
[356783374,1743177054767,-503.61318799,0.00043835,30]
[356783375,1743177054778,-538.24354434,0.00043835,30]
[356783376,1743177054789,-643.60952069,0.00043835,30]
[356783377,1743177054799,-505.37160911,0.00043835,30]
[356783378,1743177054809,-500.0,0.00043835,30]
[356783379,1743177054821,-500.0,0.00043835,30]
[356783380,1743177054831,-500.0,0.00043835,30]
[356783381,1743177054840,-500.0,0.00043835,30]
[356783382,1743177054851,-500.0,0.00043835,30]
[356783383,1743177054861,-500.0,0.00043835,30]
[356783384,1743177054871,-500.76589911,0.00043835,30]
[356783385,1743177054883,-500.0,0.00043835,30]
[356783386,1743177054894,-500.0,0.00043835,30]
[356783387,1743177054904,-388.6481072,0.00043835,30]
[356783388,1743177054913,-500.0,0.00043835,30]
[356783389,1743177054923,-538.45240306,0.00043835,30]
[356783390,1743177054933,-500.0,0.00043835,30]
[356783391,1743177054942,-545.75897883,0.00043835,30]
[356783392,1743177054951,-500.0,0.00043835,30]
[356783393,1743177054961,-1932.173292,0.00043835,14]
[356783394,1743177054971,-599.16183465,0.00043835,30]
[356783395,1743177054980,-500.0,0.00043835,30]
[356783396,1743177054991,-563.4703902,0.00043835,30]
[356783397,1743177055000,-619.60037416,0.00043835,30]
[356783398,1743177055010,-500.0,0.00043835,30]
[356783399,1743177055020,-518.791582,0.00043835,30]
[356783400,1743177055031,-500.0,0.00043835,30]
[356783401,1743177055040,-543.70635718,0.00043835,30]
[356783402,1743177055050,-500.0,0.00043835,30]
[356783403,1743177055061,-1932.173292,0.00043835,14]
[356783404,1743177055071,-546.5783224,0.00043835,30]
[356783405,1743177055081,-500.0,0.00043835,30]
[356783406,1743177055090,-500.0,0.00043835,30]
[356783407,1743177055100,-500.0,0.00043835,30]
[356783408,1743177055109,-500.0,0.00043835,30]
[356783409,1743177055118,-500.0,0.00043835,30]
[356783410,1743177055127,-507.06699338,0.00043835,30]
[356783411,1743177055138,-500.0,0.00043835,30]
[356783412,1743177055148,-500.0,0.00043835,30]
[356783413,1743177055157,-500.0,0.00043835,30]
[356783414,1743177055167,-518.90041571,0.00043835,30]
[356783415,1743177055176,-522.58790894,0.00043835,30]
[356783416,1743177055185,-500.0,0.00043835,30]
[356783417,1743177055195,-505.31916162,0.00043835,30]
[356783418,1743177055205,-1889.1,0.00043835,30]
[356783419,1743177055215,-500.0,0.00043835,30]
[356783420,1743177055224,-504.63203087,0.00043835,30]
[356783421,1743177055234,-523.19877592,0.00043835,30]
[356783422,1743177055243,-500.0,0.00043835,30]
[356783423,1743177055253,-528.34947316,0.00043835,30]
[356783424,1743177055262,-522.68441329,0.00043835,30]
[356783425,1743177055272,-500.0,0.00043835,30]
[356783426,1743177055281,-500.0,0.00043835,30]
[356783427,1743177055291,-507.50596225,0.00043835,30]
[356783428,1743177055300,-500.0,0.00043835,30]
[356783429,1743177055310,-256.37777342,0.00043835,30]
[356783430,1743177055320,-207.83688762,0.00043835,30]
[356783431,1743177055329,-512.49905206,0.00043835,30]
[356783432,1743177055339,-500.0,0.00043835,30]
[356783433,1743177055348,-500.0,0.00043835,30]
[356783434,1743177055358,-500.0,0.00043835,30]
[356783435,1743177055368,-500.0,0.00043835,30]
[356783436,1743177055378,-500.0,0.00043835,30]
[356783437,1743177055388,-500.0,0.00043835,30]
[356783438,1743177055398,-500.0,0.00043835,30]
[356783439,1743177055408,-500.0,0.00043835,30]
[356783440,1743177055418,-500.0,0.00043835,30]
[356783441,1743177055428,-509.38540707,0.00043835,30]
[356783442,1743177055438,-500.0,0.00043835,30]
[356783443,1743177055447,-500.0,0.00043835,30]
[356783444,1743177055457,-500.0,0.00043835,30]
[356783445,1743177055467,-500.0,0.00043835,30]
[356783446,1743177055476,-500.0,0.00043835,30]
[356783447,1743177055486,-509.19688294,0.00043835,30]
[356783448,1743177055496,-580.34261176,0.00043835,30]
[356783449,1743177055506,-507.55763576,0.00043835,30]
[356783450,1743177055516,-500.0,0.00043835,30]
[356783451,1743177055526,-500.0,0.00043835,30]
[356783452,1743177055536,-550.18005563,0.00043835,30]
[356783453,1743177055546,-500.0,0.00043835,30]
[356783454,1743177055556,-500.00027247,0.00043835,30]
[356783455,1743177055566,-536.35001511,0.00043835,30]
[356783456,1743177055576,-551.21773389,0.00043835,30]
[356783457,1743177055587,-520.17845877,0.00043835,30]
[356783458,1743177055598,-500.0,0.00043835,30]
[356783459,1743177055608,-500.0,0.00043835,30]
[356783460,1743177055617,-545.17985065,0.00043835,30]
[356783461,1743177055627,-517.13332749,0.00043835,30]
[356783462,1743177055637,-500.0,0.00043835,30]
[356783463,1743177055647,-641.46895251,0.00043835,30]
[356783464,1743177055657,-1201.15,0.00043835,2]
[356783465,1743177055666,-500.0,0.00043835,30]
[356783466,1743177055676,-532.39953652,0.00043835,30]
[356783467,1743177055686,-500.0,0.00043835,30]
[356783468,1743177055695,-500.0,0.00043835,30]
[356783469,1743177055705,-500.0,0.00043835,30]
[356783470,1743177055714,-500.0,0.00043835,30]
[356783471,1743177055724,-500.0,0.00043835,30]
[356783472,1743177055735,-500.0,0.00043835,30]
[356783473,1743177055744,-211.29166966,0.00043835,30]
[356783474,1743177055754,-500.0,0.00043835,30]
[356783475,1743177055764,-500.0,0.00043835,30]
[356783476,1743177055777,-500.0,0.00043835,30]
[356783477,1743177055787,-508.67893534,0.00043835,30]
[356783478,1743177055797,-530.29064533,0.00043835,30]
[356783479,1743177055807,-465.66043516,0.00043835,2]
[356783480,1743177055817,-500.0,0.00043835,30]
[356783481,1743177055827,-623.67700474,0.00043835,30]
[356783482,1743177055837,-505.59984326,0.00043835,30]
[356783483,1743177055850,-500.0,0.00043835,30]
[356783484,1743177055860,-500.0,0.00043835,30]
[356783485,1743177055870,-500.0,0.00043835,30]
[356783486,1743177055881,-522.53994826,0.00043835,30]
[356783487,1743177055890,-500.0,0.00043835,30]
[356783488,1743177055900,-533.81197247,0.00043835,30]
[356783489,1743177055910,-500.0,0.00043835,30]
[356783490,1743177055919,-532.93691018,0.00043835,30]
[356783491,1743177055929,-524.09644154,0.00043835,30]
[356783492,1743177055938,-538.97409157,0.00043835,30]
[356783493,1743177055948,-500.0,0.00043835,30]
[356783494,1743177055958,-500.0,0.00043835,30]
[356783495,1743177055968,-150.0,0.00043886,30]
[356783496,1743177055977,-150.0,0.00043886,30]
[356783497,1743177055987,-4600.0,0.000439,16]
[356783498,1743177056086,-1004.0,0.00043907,30]
[356783499,1743177056096,-500.0,0.00043973,120]
[356783500,1743177056106,-500.0,0.00043973,120]
[356783501,1743177056116,-167.43856628,0.00043973,120]
[356783502,1743177056125,-597.38161019,0.0004399,30]
[356783503,1743177056136,-50000.0,0.00044,44]
[356783504,1743177056146,-20249.87645605,0.00044,4]
[356783505,1743177058137,-1128.29724382,0.00044,4]
[356783506,1743177058164,-16677.85874084,0.00044,4]
[356783507,1743177058176,-11255.52256277,0.00044,4]
[356783508,1743177058188,-8758.6013179,0.00044,4]
[356783509,1743177058622,-285.56665977,0.00042895,7]
[356783510,1743177058633,-1152.6867871,0.00042895,7]
[356783511,1743177058647,-406.74655313,0.00042895,7]
[356783512,1743177058657,-1283.56227003,0.00044,4]
[356785923,1743178232344,-150.0,0.00016751,7]
[356785924,1743178232355,-185.57525968,0.00016751,2]
[356785925,1743178232366,-250.0,0.00025,2]
[356785926,1743178232376,-171.79,0.00026849,2]
[356785927,1743178232386,-282.28129383,0.0003259,2]
[356785928,1743178232396,-2119.63332622,0.0003259,2]
[356785929,1743178232406,-300.2706,0.0003259,2]
[356785930,1743178232416,-210.0,0.00032689,2]
[356785931,1743178232427,-400.0,0.00032689,2]
[356785932,1743178232437,-17689.19952027,0.0003269,2]
[356785933,1743178232512,-33967.07036119,0.0003269,2]
[356786026,1743178238154,-282.55999991,0.0003269,2]
[356786027,1743178238321,-430.21664722,0.0003269,2]
[356786028,1743178238437,-495.52,0.0003269,2]
[356786029,1743178238451,-648.9334858,0.0003269,2]
[356786030,1743178238500,-6061.52160548,0.0003269,2]
[356786031,1743178238513,-39424.97838013,0.0003269,2]
[356786032,1743178238523,-560.0,0.00035134,2]
[356786033,1743178238532,-480.95833526,0.00035602,2]
[356786034,1743178238543,-150.0,0.00035702,2]
[356786035,1743178238553,-150.0,0.00035702,2]
[356786036,1743178238563,-2797.06,0.00035709,2]
[356786037,1743178238573,-150.99,0.00037762,2]
[356786038,1743178238583,-783.0,0.00037762,2]
[356786039,1743178238593,-150.0,0.00038702,2]
[356786040,1743178238604,-173.48165041,0.00039726,15]
[356786041,1743178238614,-13269.72752486,0.00040379,2]
[356786042,1743178238623,-331.0,0.00040586,5]
[356786043,1743178238634,-150.0,0.00041702,2]
[356786044,1743178238644,-155.89,0.00041907,2]
[356786045,1743178238654,-160.32,0.00041931,2]
[356786046,1743178238663,-7070.16342029,0.00042,11]
[356786048,1743178240403,-1429.83657971,0.00042,11]
[356786049,1743178240414,-23900.0,0.00042107,2]
[356786050,1743178240424,-1000.0,0.00042126,2]
[356786051,1743178240435,-250.0,0.00042483,2]
[356786052,1743178240445,-198.2667361,0.00042519,4]
[356786053,1743178240456,-902.8,0.00042597,120]
[356786054,1743178240465,-200.0,0.00042628,2]
[356786055,1743178240474,-175.0,0.00042628,2]
[356786056,1743178240484,-169.04,0.00042682,120]
[356786057,1743178240493,-1000.0,0.00043068,60]
[356786058,1743178240502,-500.0,0.00043068,60]
[356786059,1743178240512,-500.0,0.00043068,60]
[356786060,1743178240522,-19522.06995321,0.0004353,2]
[356786061,1743178240539,-4214.3,0.0004353,2]
[356786062,1743178240689,-10986.77463015,0.0004353,2]
[356786063,1743178240701,-2806.52279354,0.0004353,2]
[356786064,1743178240711,-183.67698918,0.00043616,60]
[356786065,1743178240722,-816.32301082,0.00043616,60]
[356786066,1743178240732,-150.0,0.00043638,2]
[356786067,1743178240869,-166.15503628,0.00043671,120]
[356786068,1743178240881,-162.42836446,0.00043735,15]
[356786069,1743178240892,-219.28181656,0.00043735,2]
[356786070,1743178240905,-830.04778344,0.00043735,2]
[356786071,1743178240914,-2500.0,0.00043735,2]
[356786072,1743178240924,-150.0,0.00043742,2]
[356786073,1743178240935,-368.7964,0.0004379,2]
[356786074,1743178240944,-150.0,0.00043809,2]
[356786075,1743178240954,-191.73636467,0.0004381,2]
[356786076,1743178240964,-559.202,0.00043834,68]
[356786077,1743178240975,-177.076,0.00043834,68]
[356786078,1743178240984,-517.01780828,0.00043835,30]
[356786079,1743178240994,-505.55706638,0.00043835,30]
[356786080,1743178241004,-500.0,0.00043835,16]
[356786081,1743178241024,-518.27384702,0.00043835,30]
[356786082,1743178241037,-513.91602699,0.00043835,30]
[356786083,1743178241048,-500.0,0.00043835,30]
[356786084,1743178241058,-500.0,0.00043835,5]
[356786085,1743178241068,-310.00881851,0.00043835,30]
[356786086,1743178241079,-518.91620916,0.00043835,30]
[356786087,1743178241090,-519.5497427,0.00043835,30]
[356786088,1743178241102,-500.04327297,0.00043835,2]
[356786089,1743178241112,-500.0,0.00043835,3]
[356786090,1743178241123,-543.67085569,0.00043835,30]
[356786091,1743178241133,-500.0,0.00043835,30]
[356786092,1743178241143,-500.0,0.00043835,2]
[356786093,1743178241156,-400.01642108,0.00043835,30]
[356786094,1743178241166,-392.24592145,0.00043835,30]
[356786095,1743178241176,-500.0,0.00043835,30]
[356786096,1743178241188,-500.0,0.00043835,30]
[356786097,1743178241199,-521.70024321,0.00043835,30]
[356786098,1743178241209,-500.0,0.00043835,30]
[356786099,1743178241219,-511.16552142,0.00043835,30]
[356786100,1743178241230,-500.0,0.00043835,30]
[356786101,1743178241241,-500.0,0.00043835,10]
[356786102,1743178241250,-500.0,0.00043835,30]
[356786103,1743178241260,-500.0,0.00043835,30]
[356786104,1743178241270,-500.0,0.00043835,30]
[356786105,1743178241282,-500.0,0.00043835,30]
[356786106,1743178241292,-500.0,0.00043835,30]
[356786107,1743178241303,-500.0,0.00043835,30]
[356786108,1743178241313,-301.05969703,0.00043835,30]
[356786135,1743178245457,-1.50932078,0.00043835,30]
[356786136,1743178246537,-868.59242,0.00035792,2]
[356786305,1743179108558,4417.25477337,0.00015,2]
[356786306,1743179108589,4417.25477337,0.00015,2]
[356786307,1743179108619,4417.25477337,0.00015,2]
[356786308,1743179108648,4417.25477337,0.00015,2]
[356786309,1743179108680,4417.25477337,0.00015,2]
[356786310,1743179108709,4417.25477337,0.00015,2]
[356786311,1743179108737,4417.25477337,0.00015,2]
[356786312,1743179108765,4417.25477337,0.00015,2]
[356786313,1743179108793,4417.25477337,0.00015,2]
[356786314,1743179108820,4417.25477337,0.00015,2]
[356786315,1743179108852,24153.57286398,0.00015,2]
[356786316,1743179128916,168.25727504,0.00011,2]
[356786329,1743179343446,-6593.76122773,0.0001489,2]
[356786330,1743179343498,-5693.03627077,0.0001489,2]
[356786347,1743179431964,-467.06727,0.0001489,2]
[356786348,1743179432072,-12892.10458066,0.0001489,2]
[356786349,1743179432086,-150.0,0.00014899,2]
[356786350,1743179432100,-1828.625,0.000149,2]
[356786351,1743179432112,-1276.2392,0.000149,2]
[356786352,1743179432126,-207.07742211,0.000149,2]
[356786353,1743179432139,-4036.11026048,0.000149,2]
[356786354,1743179432154,-222.7502,0.000149,2]
[356786355,1743179432167,-160.71209446,0.00014973,2]
[356786356,1743179432179,-500.0,0.00014973,2]
[356786357,1743179432192,-2765.46898694,0.0001499,2]
[356786358,1743179432208,-430.25086577,0.0001499,2]
[356786359,1743179432220,-252.252,0.0001499,2]
[356786363,1743179437311,-1448.48055807,0.0001499,2]
[356786364,1743179437326,-1995.70000001,0.0001499,2]
[356786365,1743179437342,-419.33153998,0.0001499,2]
[356786366,1743179437367,-511.64502855,0.0001499,2]
[356786367,1743179437476,-529.27346203,0.0001499,2]
[356786368,1743179437491,-1961.65851642,0.0001499,2]
[356786369,1743179437505,-1272.01274265,0.0001499,2]
[356786370,1743179437529,-377.8065,0.0001499,2]
[356786371,1743179437544,-781.5493734,0.0001499,2]
[356786426,1743179439546,-193.43672273,0.000149,2]
[356786427,1743179439558,-1272.9950079,0.0001499,2]
[356786428,1743179439573,-36412.93280912,0.0001499,2]
[356786429,1743179439584,-279.82816015,0.0001499,2]
[356786430,1743179439596,-279.82816015,0.0001499,2]
[356786431,1743179439608,-279.82816015,0.0001499,2]
[356786432,1743179439620,-172.85496232,0.00014999,2]
[356786433,1743179439632,-43511.15877177,0.00015,2]
[356786434,1743179439646,-1285.09837437,0.00015,2]
[356786435,1743179439701,-771.144,0.00015,2]
[356786436,1743179439715,-2542.05952,0.00015,2]
[356786437,1743179439847,-820.62846911,0.00015,2]
[356786438,1743179439865,-16808.10000001,0.00015,2]
[356786439,1743179439920,-414.54,0.00015,2]
[356786498,1743179442589,-254.0,0.00015,2]
[356786510,1743179442699,-3525.24219867,0.00015,2]
[356786512,1743179442711,-4815.8139155,0.00015,2]
[356786523,1743179442810,-4727.92676812,0.00015,2]
[356786681,1743179444358,-873.04153788,0.00015,2]
[356786684,1743179444370,-276.07196702,0.00015,2]
[356786686,1743179444382,-12982.83995627,0.00015,2]
[356786688,1743179444398,-167999.99999998,0.00015,2]
[356786691,1743179444409,-1821.82014999,0.00015,2]
[356786693,1743179444421,-2534.52691335,0.00015,2]
[356786694,1743179444432,-2015.31330001,0.00015,2]
[356786739,1743179445350,-1371.9392316,0.00015,2]
[356786740,1743179445407,-1060.45302988,0.00015,2]
[356786741,1743179445419,-290.75053143,0.00015,2]
[356786742,1743179445570,-44814.80497937,0.00015,2]
[356786743,1743179445627,-918.650575,0.00015,2]
[356786744,1743179445638,-2310.1151523,0.00015,2]
[356786745,1743179445686,-556.5405611,0.00015,2]
[356786746,1743179445698,-839.7,0.00015,2]
[356786749,1743179462060,300.0,0.000143,5]
[356786750,1743179464179,600.0,0.000144,5]
[356786751,1743179466300,900.0,0.000145,5]
[356786752,1743179468410,1200.0,0.000146,5]
[356786753,1743179470524,1500.0,0.000147,5]
[356786754,1743179585984,-300.0,0.000148,5]
[356786755,1743179586011,-300.0,0.000149,5]
[356786756,1743179586037,-1605.28700906,0.00015,5]
[356786757,1743179601376,-300.0,0.00014899,2]
[356786758,1743179601403,-2500.0,0.000149,2]
[356786759,1743179601429,-162.36518174,0.000149,2]
[356786760,1743179601455,-4340.4972803,0.000149,2]
[356786761,1743179601479,-193.43672273,0.000149,2]
[356786762,1743179601504,-793.8555,0.000149,2]
[356786763,1743179601529,-16709.84531523,0.000149,2]
[356786764,1743179602395,-25000.0,0.000149,2]
[356786765,1743179603374,-25000.0,0.000149,2]
[356786766,1743179604298,-25000.0,0.000149,2]
[356786767,1743179605177,-25000.0,0.000149,2]
[356786768,1743179606030,-25000.0,0.000149,2]
[356786769,1743179606842,-25000.0,0.000149,2]
[356786770,1743179607683,-25000.0,0.000149,2]
[356786771,1743179608582,-5467.9389787,0.000149,2]
[356786772,1743179608620,-620.3955,0.000149,2]
[356786773,1743179608651,-188.24833984,0.000149,2]
[356786774,1743179608677,-308.2539,0.000149,2]
[356786775,1743179608704,-500.0,0.00014973,2]
[356786776,1743179608732,-182.40259198,0.00014999,2]
[356786777,1743179608762,-17732.76068948,0.00015,2]
[356786778,1743179609488,-25000.0,0.00015,2]
[356786780,1743179610357,-25000.0,0.00015,2]
[356786781,1743179611313,-25000.0,0.00015,2]
[356786782,1743179612119,-25000.0,0.00015,2]
[356786783,1743179613059,-25000.0,0.00015,2]
[356786799,1743179613925,-25000.0,0.00015,2]
[356786838,1743179614900,-25000.0,0.00015,2]
[356786871,1743179615723,-25000.0,0.00015,2]
[356786899,1743179616589,-25000.0,0.00015,2]
[356786971,1743179618373,-184.49178975,0.000149,2]
[356786973,1743179618401,-24815.50821025,0.00015,2]
[356787069,1743179620845,-25000.0,0.00015,2]
[356787108,1743179621785,-25000.0,0.00015,2]
[356787131,1743179622483,-25000.0,0.00015,2]
[356787168,1743179623381,-25000.0,0.00015,2]
[356787200,1743179624405,-25000.0,0.00015,2]
[356787234,1743179625497,-25000.0,0.00015,2]
[356787251,1743179626266,-25000.0,0.00015,2]
[356787283,1743179627080,-25000.0,0.00015,2]